Cogmind - Beta 15 @@@ ROGUE MODE // 2025.07.19 @ 09:30:30 Player: Fazzonamite Result: Destroyed by as-21931 with Assembled Blade Performance ------------- Evolutions (0) 0 Regions Visited (2) 400 Robots Destroyed (21) 105 Value Destroyed (364) 364 Prototype IDs (0) 0 Alien Tech Used (0) 0 Bonus (0) 0 TOTAL SCORE: 869 Bonus ------- None Cogmind --------- Core Integrity 0/250 Matter 300/300 Energy 95/100 System Corruption 11% Temperature Cool (0) Movement Core (50) Location -10/Mines Parts ------- > --- POWER (1) -------- (None) > --- PROPULSION (2) --- (None) > --- UTILITY (2) ------ (None) > --- WEAPON (2) ------- (None) > --- INVENTORY (5) ---- Heat Sink Weight Redist. System Structural Scanner Improved Terrain Scanner Targeting Computer Peak State ------------ > --- POWER ------------ Light Ion Engine > --- PROPULSION ------- Wheel Wheel > --- UTILITY ---------- Large Storage Unit Sensor Array > --- WEAPON ----------- Particle Gun Light Assault Rifle > --- INVENTORY -------- Heat Sink Small Storage Unit Medium Matter Pod Weight Redist. System Structural Scanner Improved Terrain Scanner Seismic Detector Power Shielding Particle Gun Beam Cannon Assault Rifle Datajack Mining Claw [Rating: 9] Favorites ----------- Power Light Ion Engine Engine Light Ion Engine Propulsion Compact Wheel Wheel Compact Wheel Utility Large Storage Unit Device Sensor Array Storage Large Storage Unit Protection Light Armor Plating Weapon Light Assault Rifle Energy Gun EM Pulse Gun Ballistic Gun Light Assault Rifle Special Melee Weapon Datajack Build | -11 -10 -10 ------- Run | Yrd Mat Min Slots Evolved . | . . . Power . | . . . Propulsion . | . . . Utility . | . . . Weapon . | . . . Parts Attached 16 | 5 9 2 Power 2 | 1 1 . Engine 2 | 1 1 . Core . | . . . Reactor . | . . . Propulsion 4 | 2 2 . Treads . | . . . Leg . | . . . Wheel 4 | 2 2 . Hover . | . . . Flight . | . . . Utility 5 | . 4 1 Device 3 | . 2 1 Storage 1 | . 1 . Processor . | . . . Hackware . | . . . Protection 1 | . 1 . Artifact . | . . . Weapon 5 | 2 2 1 Energy Gun 2 | 1 1 . Energy Cannon . | . . . Ballistic Gun 2 | 1 1 . Ballistic Cannon . | . . . Launcher . | . . . Special Weapon . | . . . Impact Weapon . | . . . Slashing Weapon . | . . . Piercing Weapon . | . . . Special Melee Weapon 1 | . . 1 Unidentified Prototypes . | . . . Parts Lost 13 | . 6 7 Power 2 | . 1 1 Propulsion 4 | . 2 2 Utility 2 | . 1 1 Weapon 5 | . 2 3 Highest Loss Streak 7 | . 3 7 To Critical Strikes . | . . . Average Backups 8 | 3 10 13 Power . | . . . Propulsion . | . . 1 Utility 4 | 1 6 7 Weapon 1 | . 2 4 Tool/Special . | . . . Unused Backups 12 | . . 12 Power . | . . . Propulsion 1 | . . 1 Utility 7 | . . 7 Weapon 4 | . . 4 Tool/Special . | . . . Average Slot Usage (%) 90 | . 92 77 Engine 13 | . 14 10 Wheel 23 | . 23 19 Device 3 | . 2 10 Storage 12 | . 12 14 Protection 9 | . 10 . Energy Gun 10 | . 10 12 Ballistic Gun 16 | . 17 10 Peak Build Rating 9 | 5 9 9 Average Rating 6 | 4 7 7 On Entrance 4 | . 5 9 Naked Turns 1 | . . 1 Heaviest Build 30 | 6 30 28 Greatest Support 32 | 32 32 20 Greatest Overweight (x) 6 | . 2 6 Average Overweight (x) . | . . 1 Largest Inventory Capacity 15 | 5 15 15 Average Capacity 11 | 5 13 14 Most Carried 15 | 5 15 14 Average Carried 8 | 3 10 13 Final Capacity 15 | 5 15 5 Final Carried 14 | 5 14 5 Class Distribution -------------------- 81% | Mutant 18% | Scavenger-Mutant Dominant Class ---------------- Mutant | -10/Materials Scavenger-Mutant | -10/Mines Resources | -11 -10 -10 ----------- Run | Yrd Mat Min Matter Collected 586 | 301 275 10 Remotely . | . . . Salvage Created 652 | 89 563 . Parts 44 | 11 33 . Haulers Intercepted 2 | . 2 . Recyclers Shooed 2 | . 2 . Parts Field Recycled . | . . . Retrieved Matter . | . . . Parts Self-Destructed . | . . . Prevented . | . . . Kills | -11 -10 -10 ------- Run | Yrd Mat Min Combat Hostiles Destroyed 9 | . 9 . Guns 9 | . 9 . Classes Destroyed 7 | 1 6 . Worker 2 | . 2 . Builder 2 | . 2 . Tunneler 5 | 5 . . Hauler 2 | . 2 . Watcher 1 | . 1 . Swarmer 2 | . 2 . Grunt 7 | . 7 . Best Kill Streak 4 | 1 4 . Combat Bots Only 3 | . 3 . Max Kills in Single Turn 1 | 1 1 . Gunslinging . | . . . Exploded . | . . . Melee . | . . . Uniques/NPCs Destroyed . | . . . Combat | -11 -10 -10 -------- Run | Yrd Mat Min Hostile Shots Fired 106 | . 66 40 Missed 27 | . 21 6 Hits 79 | . 45 34 Melee 5 | . . 5 Projectile 74 | . 45 29 Critical Strikes 1 | . 1 . Part Disruptions 2 | . . 2 Damage Taken 1038 | . 558 480 Core 282 | . 100 182 Absorbed by Shields . | . . . Core Remaining (%) 100 | 100 . . Volleys Fired 137 | 51 79 7 Largest 2 | 2 2 2 Hottest 85 | 60 85 85 Shots Fired 227 | 60 157 10 Gun 227 | 60 157 10 Cannon . | . . . Launcher . | . . . Special . | . . . Kinetic 164 | 51 110 3 Thermal 23 | . 16 7 Explosive . | . . . Electromagnetic 40 | 9 31 . Robot Hit Streak 11 | 11 7 3 Robot Miss Streak 3 | 3 3 1 Penetration Max . | . . . Secondary Targets . | . . . Shots Hit Robots 150 | 42 100 8 Core Hits 51 | 10 40 1 Critical Kills 1 | 1 . . Critical Parts Destroyed 1 | . 1 . Critical Strikes 4 | 1 2 1 Burn 2 | . 1 1 Destroy 2 | 1 1 . Melee Attacks 2 | . . 2 Impact . | . . . Slashing . | . . . Piercing . | . . . Sneak Attacks . | . . . Combat Hostiles . | . . . Follow-up Attacks . | . . . Damage Inflicted 1522 | 350 1080 92 Guns 1473 | 350 1032 91 Cannons . | . . . Explosions 48 | . 48 . Melee . | . . . Ramming 1 | . . 1 Kinetic 924 | 297 612 15 Thermal 302 | . 226 76 Explosive . | . . . Electromagnetic 295 | 53 242 . Impact . | . . . Slashing . | . . . Piercing . | . . . Highest Corruption 11 | . 1 11 Average Corruption 1 | . 1 2 Corruption Purged . | . . . Corruption Blocked . | . . . Effects 2 | . 1 1 Heat Flow Errors 1 | . . 1 Data Loss (minor) 1 | . 1 . Overload Shots . | . . . Overflow Damage . | . . . Projectiles . | . . . Explosions . | . . . Melee . | . . . Knockbacks . | . . . Impact . | . . . Kinetic . | . . . Secondary . | . . . Self-Inflicted Damage . | . . . Shots . | . . . Rammed 1 | . . 1 Targets Rammed 1 | . . 1 Kicked . | . . . Crushed . | . . . Highest Temperature 178 | 40 178 127 Average Temperature 50 | 21 51 54 Received Heat Transfer 559 | . 279 280 Siege Activations . | . . . Martial Activations . | . . . Shielding Activations . | . . . Robots Disrupted . | . . . Combat Hostiles . | . . . Robots Corrupted . | . . . Combat Hostiles . | . . . Parts Fried 1 | . 1 . Impact Corruptions . | . . . Robots Melted . | . . . Combat Hostiles . | . . . Parts Melted 2 | . 2 . Heat Transferred 790 | . 531 259 Parts Sabotaged . | . . . Parts Stolen . | . . . Parts Stripped . | . . . Power Chain Reactions 1 | . 1 . Alert | -11 -10 -10 ------- Run | Yrd Mat Min Maximum Alert Level . | . . . Low Security (%) 100 | 100 100 100 Level 1 . | . . . Level 2 . | . . . Level 3 . | . . . Level 4 . | . . . Level 5 . | . . . High Security . | . . . Max Security . | . . . Peak Influence 91 | 5 91 35 Initial 35 | . . 35 Average 18 | . 29 14 Influence Increases 399 | 25 374 . Destroy 0b10 Robot/C 180 | . 180 . Destroy 0b10 Robot/NC 60 | 25 35 . Destroy Leader 36 | . 36 . Successful Hack 12 | . 12 . Destroy Structure 6 | . 6 . Lose Combat Pursuer 105 | . 105 . Influence Decreases 399 | 25 283 91 Entered New Map 56 | . . 56 Time Decay 302 | 25 247 30 Lost Part 41 | . 36 5 Squads Dispatched 1 | . 1 . Investigation 1 | . 1 . Extermination . | . . . Reinforcement . | . . . Assault . | . . . Garrison . | . . . Intercept . | . . . Searches Triggered . | . . . Construction Impeded . | . . . Haulers Reinforced . | . . . Active Scanning Responses . | . . . Cargo Convoy Interrupts . | . . . Stealth | -11 -10 -10 --------- Run | Yrd Mat Min Distress Signals . | . . . Communications Jammed . | . . . Distress Signals . | . . . Times Spotted 36 | . 22 14 Peak Tracking Total 14 | . 5 14 Tactical Retreats 6 | . 6 . Traps | -11 -10 -10 ------- Run | Yrd Mat Min Traps Triggered 1 | . 1 . Indirectly . | . . . Trap Hack Attempts . | . . . Triggered . | . . . Disarmed . | . . . Reprogrammed . | . . . Reused . | . . . Traps Extracted . | . . . Installed . | . . . Triggered . | . . . Machines | -11 -10 -10 ---------- Run | Yrd Mat Min Machines Disabled . | . . . Max in Single Turn . | . . . Machines Repaired . | . . . Machines Dismantled . | . . . Machines Sabotaged . | . . . Overloaded Fab Kills . | . . . Hacking | -11 -10 -10 --------- Run | Yrd Mat Min Machines Accessed 5 | . 5 . Terminals 5 | . 5 . Fabricators . | . . . Repair Stations . | . . . Recycling Units . | . . . Scanalyzers . | . . . Garrison Access . | . . . Total Hacks 16 | . 16 . Successful 6 | . 6 . Failed 10 | . 10 . Catastrophic 1 | . 1 . Database Lockouts . | . . . Manual 15 | . 15 . Terminals 16 | . 16 . Fabricators . | . . . Repair Stations . | . . . Recycling Units . | . . . Scanalyzers . | . . . Garrison Access . | . . . Terminal Hacks 1 | . 1 . Robot Analysis 1 | . 1 . Fabricator Hacks . | . . . Repair Station Hacks . | . . . Recycling Unit Hacks . | . . . Scanalyzer . | . . . Garrison Access Hacks . | . . . Unauthorized Hacks 5 | . 5 . Terminals 5 | . 5 . Botnet 5 | . 5 . Fabricators . | . . . Repair Stations . | . . . Recycling Units . | . . . Scanalyzers . | . . . Garrison Access . | . . . Data Cores Recovered . | . . . Used . | . . . Hacking Detections 4 | . 4 . Full Trace Events 1 | . 1 . Feedback Events . | . . . Feedback Blocked . | . . . Robot Schematics Acquired . | . . . Robots Built . | . . . Authchips . | . . . Time . | . . . Total Robot Build Rating . | . . . Part Schematics Acquired . | . . . Parts Built . | . . . Authchips . | . . . Time . | . . . Total Part Build Rating . | . . . Parts Repaired . | . . . Time . | . . . Parts Recycled . | . . . Recycled Matter . | . . . Retrieved Matter . | . . . Retrieved Components . | . . . Parts Scanalyzed . | . . . Part Schematics Acquired . | . . . Parts Damaged . | . . . Bothacking | -11 -10 -10 ------------ Run | Yrd Mat Min Used RIF Installer . | . . . Robots Hacked 1 | . . 1 Non-combat . | . . . Combat 1 | . . 1 Robot Hacks Applied 1 | . . 1 parse_system 1 | . . 1 Relay Couplers Released . | . . . Fabnet Peak Effective % . | . . . Robots Rewired . | . . . Allies Hacked . | . . . Hacks Repelled . | . . . Allies | -11 -10 -10 -------- Run | Yrd Mat Min Total Allies . | . . . Largest Group . | . . . Highest-Rated Group . | . . . Highest-Rated Ally . | . . . Total Orders . | . . . Ally Attacks . | . . . Total Damage . | . . . Kills . | . . . Allies Corrupted . | . . . Allies Melted . | . . . Intel | -11 -10 -10 ------- Run | Yrd Mat Min Active Infowar (turns) 195 | . 139 56 Sensors 114 | . 107 7 Structural 32 | . 32 . Seismic 49 | . . 49 Robot Analysis Total 1 | . 1 . Derelict Logs Recovered . | . . . Drone Launches . | . . . Drone Recoveries . | . . . Exploration | -11 -10 -10 ------------- Run | Yrd Mat Min Turns Passed 1233 | 391 737 105 Spaces Moved 716 | 245 416 55 Core 13 | 11 . 2 Treads . | . . . Legs . | . . . Wheels 703 | 234 416 53 Hover . | . . . Flight . | . . . Fastest Speed 50 | 50 95 95 Average Speed 100 | 97 101 104 Slowest Speed 350 | 100 110 350 Overloaded Moves . | . . . Propulsion Burnouts . | . . . Robots Hopped . | . . . Potential Cave-ins . | . . . Cave-ins Triggered . | . . . Exploration Rate (%) 31 | 9 63 21 Regions Visited 2 Branch Regions 1 Pre-discovered Areas . | . . . Known Exits Taken . | . . . Unknown Exits Taken 2 | 1 1 . Scrap Searched 1 | . . 1 Spaces Dug . | . . . Terrain Destroyed 7 | . 7 . Melee . | . . . Projectile . | . . . AOE 7 | . 7 . Terrain Rammed . | . . . Walls Destroyed . | . . . Machines Disabled . | . . . Actions | -11 -10 -10 --------- Run | Yrd Mat Min Total 1028 | 345 593 90 Wait 128 | 37 71 20 Move 714 | 244 415 55 Hop . | . . . Pick Up 26 | 8 17 1 Fast Attach 4 | 2 2 . Attach 11 | 3 6 2 Detach . | . . . Swap 1 | . 1 . Drop 4 | . 2 2 Fire 137 | 51 79 7 Melee 2 | . . 2 Ram 1 | . . 1 Kick . | . . . Crush . | . . . Escape Stasis . | . . . Rewire . | . . . Trap . | . . . Miscellaneous . | . . . Route ------- -11/Scrapyard -10/Materials (discovered 4 exits: [*Mat x3] / [*Min]) -10/Mines History --------- Turn | Location | Event 8 | -11/Scrapyard | Discovered new exit (range 16) 392 | -11/Scrapyard | Entered Materials 393 | -10/Materials | Build established: Mutant 414 | -10/Materials | Discovered new exit (range 10) 620 | -10/Materials | Discovered new exit (range 9) 639 | -10/Materials | Discovered new exit (range 10) 729 | -10/Materials | Discovered new exit (range 10) 1047 | -10/Materials | Lost 3 parts (1p1u1w) 1129 | -10/Materials | Entered Mines 1147 | -10/Mines | Met a Derelict bent on vengeance 1171 | -10/Mines | Assembled infested the area 1205 | -10/Mines | Core integrity fell below 50% 1222 | -10/Mines | System corruption reached 10% 1226 | -10/Mines | Core integrity fell below 20% 1234 | -10/Mines | Destroyed by as-21931 with Assembled Blade Last Messages --------------- 01150_ System corrupted: Heat flow error (+147). 01171_ ALERT: Infestation in the mines, dispatching Demolisher response squad. 01185_ as-38285 suffers critical hit (Burn). 01189_ Wheel destroyed. 01204_ Lgt. Assault Rifle destroyed. 01207_ Lgt. Ion Engine destroyed. 01208_ Seismic Detector destroyed. 01213_ Jacked as-30182... >>parse_system Reading system data... 01218_ Wheel destroyed. 01218_ Datajack destroyed. 01218_ System corrupted by crushing effect (+4). 01218_ System corrupted by crushing effect (+3). 01221_ Particle Gun destroyed. 01221_ System corrupted by crushing effect (+3). 01221_ Knocked back. 01226_ Slammed into as-38285. 01233_ Dropped Lrg. Storage Unit. Map ----- +----------------------------------------------------+ | | | | | | | | | | | | | | | | | | | | | | | | | ?????????????????????????????????????????? | | ?????????????????????????????????????????? | | ?????????????????????????????????????????? | | ?????????????????????????????????????????? | | ?????????????????????????????????????????? | | ?????????????????????????????????????????? | | ?????????????????????????????????????????? | | ?????????????????????????????????????????? | | ?????????????????????????????#???????????? | | ????????????????????????#### ????????????? | | ????????????????????????# a ?????????????? | | ??????????????????#######a#??????????????? | | ??????????????????# aaa#??#???????????? | | ??????????????????# #####@## #???????????? | | ??????????????????# #??#!aa[ #???????????? | | ????????????????### ###a =! #???????????? | | ???????????????## a #???????????? | | ???????????????# #??????????? | | ???????????????# ### #?????????? | | ???????????????## #?# #?????????? | | ????????????????# #?# ???????? | | ????????????????# ### #????????? | | ????????# ??????# ### #????????? | | ????????# ##### #?# ##????????? | | ?????????# #??# ##?????????? | | ?????????# ##???# #??????????? | | ?????????####### ###????# #??????????? | | ???????????????# ##??????# #??????????? | | ???????????????# ##??????# #??????????? | | ???????????????## #####??# #??????????? | | ????????????????## #### #??????????? | | ?????????????????# """ #??????????? | | ?????????????????# """ ### #??????????? | | ????????????????# """ ##?# #??????????? | | ???????????????# ##??# #??????????? | | ???????????????# #???# #??????????? | | ???????????????# #???# #??????????? | | ???????????????## ##???# #??????????? | +----------------------------------------------------+ Best States ------------- Heat Dissipation 25 Energy Generation 10 Energy Capacity 125 Matter Stores 300 Matter Capacity 300 Sight Range 16 Robot Scan Range 14 Terrain Scan Density 10 Armor Coverage 150 Evasion (%) 50 Item Schematics ----------------- None Robot Schematics ------------------ None Fabricated ------------ Nothing Repaired ---------- Nothing Alien Tech Used ----------------- None Achievements -------------- None Challenges ------------ None Game ------ Seed CoilConceptScreen Manual? 0 Play Time 00:19:12 Cumulative 176.7 hours Start 2025.07.19 @ 09:05:27 End 2025.07.19 @ 09:30:30 Sessions 1 Manual Loads 0 Difficulty Rogue Special Mode None Game No. 117 Rogue 117 Adventurer 0 Explorer 0 Win Type - Total 4 Types 3/0/1/0/0/0/0/0/0/0 Lore% 53 Gallery% 52 Achievement% 50 Wizard Run 0 Options --------- Layout 2 ASCII 0 Keyboard 0 Movement Mouse Keybinds 0 Fullscreen 1 Font 48/Smallcaps Map View 55x44 Zoom Use 0% Tactical HUD 1 Map Filters NONE Filters NONE Steam 1 RUN: 1e0090a4-221d-4823-83e5-40dbf9d98c0d